[Event "*** Titled Tuesday Blitz"]
[Site "Chess.com"]
[Date "2020.05.05"]
[Round "7"]
[White "Rytenko_V"]
[Black "shav3184"]
[Result "1-0"]
[WhiteElo "2484"]
[BlackElo "2338"]
[TimeControl "180+1"]
[EndTime "11:15:11 PDT"]
[Termination "Rytenko_V won by resignation"]

1. e4 {[%clk 0:03:00.9]} 1... e5 {[%clk 0:02:59.6]} 2. Nc3 {[%clk 0:02:59]} 2...
Nf6 {[%clk 0:02:56.1]} 3. Bc4 {[%clk 0:02:57.7]} 3... Bc5 {[%clk 0:02:55.9]} 4.
d3 {[%clk 0:02:57.5]} 4... c6 {[%clk 0:02:54.7]} 5. Bg5 {[%clk 0:02:57.2]} 5...
h6 {[%clk 0:02:52.9]} 6. Bh4 {[%clk 0:02:56.9]} 6... d6 {[%clk 0:02:49.3]} 7.
Nf3 {[%clk 0:02:54.5]} 7... Nbd7 {[%clk 0:02:45]} 8. Qd2 {[%clk 0:02:47.5]} 8...
Nf8 {[%clk 0:02:44.4]} 9. O-O-O {[%clk 0:02:46.1]} 9... Ng6 {[%clk 0:02:44]} 10.
Bg3 {[%clk 0:02:45.5]} 10... b5 {[%clk 0:02:41]} 11. Bb3 {[%clk 0:02:45.2]}
11... a5 {[%clk 0:02:40.3]} 12. a4 {[%clk 0:02:44.2]} 12... Bb4 {[%clk
0:02:34.8]} 13. Rhe1 {[%clk 0:02:11.2]} 13... Rb8 {[%clk 0:02:31]} 14. d4 {[%clk
0:02:10.1]} 14... Qc7 {[%clk 0:02:15.5]} 15. dxe5 {[%clk 0:02:08.8]} 15... dxe5
{[%clk 0:02:14.7]} 16. Nxe5 {[%clk 0:02:08.4]} 16... Nxe5 {[%clk 0:01:41.9]} 17.
Bxe5 {[%clk 0:02:05.9]} 17... Qe7 {[%clk 0:01:28.9]} 18. Bxb8 {[%clk 0:02:05.2]}
18... O-O {[%clk 0:01:28.9]} 19. Bd6 {[%clk 0:02:05.4]} 19... Qb7 {[%clk
0:01:17.2]} 20. Bxf8 {[%clk 0:02:03.5]} 20... Kxf8 {[%clk 0:01:18.1]} 21. Qd8+
{[%clk 0:02:02.8]} 1-0

[Event "*** Titled Tuesday Blitz"]
[Site "Chess.com"]
[Date "2020.05.05"]
[Round "7"]
[White "tsvet2005"]
[Black "Piotrek1979"]
[Result "0-1"]
[WhiteElo "2488"]
[BlackElo "2291"]
[TimeControl "180+1"]
[EndTime "11:15:30 PDT"]
[Termination "Piotrek1979 won by resignation"]

1. d4 {[%clk 0:03:00.9]} 1... Nf6 {[%clk 0:02:58.9]} 2. c4 {[%clk 0:02:49.7]}
2... d6 {[%clk 0:02:59.8]} 3. Nf3 {[%clk 0:02:49]} 3... Nbd7 {[%clk 0:02:40.6]}
4. Nc3 {[%clk 0:02:49.4]} 4... e5 {[%clk 0:02:40]} 5. e4 {[%clk 0:02:50]} 5...
g6 {[%clk 0:02:38.3]} 6. Be2 {[%clk 0:02:50.1]} 6... Bg7 {[%clk 0:02:38.6]} 7.
Be3 {[%clk 0:02:50.7]} 7... O-O {[%clk 0:02:38.2]} 8. d5 {[%clk 0:02:51.2]} 8...
Ng4 {[%clk 0:02:34]} 9. Bg5 {[%clk 0:02:50.8]} 9... f6 {[%clk 0:02:34.3]} 10.
Bh4 {[%clk 0:02:51.2]} 10... Nh6 {[%clk 0:02:28.5]} 11. Nd2 {[%clk 0:02:36.8]}
11... a5 {[%clk 0:02:21.5]} 12. f3 {[%clk 0:02:36]} 12... Nf7 {[%clk 0:02:17.3]}
13. a3 {[%clk 0:02:35.7]} 13... Bh6 {[%clk 0:02:16.2]} 14. Bf2 {[%clk
0:02:32.8]} 14... f5 {[%clk 0:02:15.2]} 15. O-O {[%clk 0:02:28.1]} 15... Nf6
{[%clk 0:02:14]} 16. Qc2 {[%clk 0:02:22.5]} 16... Nh5 {[%clk 0:02:07.4]} 17.
Rfe1 {[%clk 0:02:20.5]} 17... Qg5 {[%clk 0:01:53.4]} 18. Nf1 {[%clk 0:02:03.6]}
18... Nf4 {[%clk 0:01:52.2]} 19. Ng3 {[%clk 0:02:02.5]} 19... Nxe2+ {[%clk
0:01:45.5]} 20. Ngxe2 {[%clk 0:02:03.4]} 20... f4 {[%clk 0:01:41]} 21. b4 {[%clk
0:01:52.3]} 21... Bh3 {[%clk 0:01:38.2]} 22. g3 {[%clk 0:01:52]} 22... Qh5
{[%clk 0:01:37.4]} 23. g4 {[%clk 0:01:48.9]} 23... Bxg4 {[%clk 0:01:36.9]} 24.
fxg4 {[%clk 0:01:49.8]} 24... Qxg4+ {[%clk 0:01:37.3]} 25. Kh1 {[%clk
0:01:50.3]} 25... Qf3+ {[%clk 0:01:36.7]} 26. Kg1 {[%clk 0:01:50.6]} 26... Ng5
{[%clk 0:01:37.2]} 27. Kf1 {[%clk 0:01:39]} 27... Qh3+ {[%clk 0:01:35.1]} 0-1

[Event "*** Titled Tuesday Blitz"]
[Site "Chess.com"]
[Date "2020.05.05"]
[Round "7"]
[White "stoleriu"]
[Black "VALPARAISO37"]
[Result "1-0"]
[WhiteElo "2559"]
[BlackElo "2390"]
[TimeControl "180+1"]
[EndTime "11:15:38 PDT"]
[Termination "stoleriu won by checkmate"]

1. e4 {[%clk 0:03:00.9]} 1... e5 {[%clk 0:02:42.8]} 2. Nf3 {[%clk 0:02:59.9]}
2... Nc6 {[%clk 0:02:41.3]} 3. Bb5 {[%clk 0:02:59.3]} 3... a6 {[%clk 0:02:40.4]}
4. Ba4 {[%clk 0:02:59.5]} 4... Nf6 {[%clk 0:02:38.1]} 5. d3 {[%clk 0:02:59.4]}
5... Bc5 {[%clk 0:02:37.5]} 6. O-O {[%clk 0:02:57.1]} 6... b5 {[%clk 0:02:37.3]}
7. Bb3 {[%clk 0:02:56.7]} 7... d6 {[%clk 0:02:38.2]} 8. c3 {[%clk 0:02:54.6]}
8... Bg4 {[%clk 0:02:39.1]} 9. Nbd2 {[%clk 0:02:53.2]} 9... Bb6 {[%clk 0:02:40]}
10. Re1 {[%clk 0:02:53.5]} 10... Rb8 {[%clk 0:02:40.5]} 11. Nf1 {[%clk
0:02:53.9]} 11... Ne7 {[%clk 0:02:40.6]} 12. h3 {[%clk 0:02:51.9]} 12... Bd7
{[%clk 0:02:40.1]} 13. Ng3 {[%clk 0:02:36.3]} 13... O-O {[%clk 0:02:38.9]} 14.
Bg5 {[%clk 0:02:34.1]} 14... c5 {[%clk 0:02:36.2]} 15. Bxf6 {[%clk 0:02:32]}
15... gxf6 {[%clk 0:02:35.6]} 16. Nh4 {[%clk 0:02:32.7]} 16... Be6 {[%clk
0:02:30.7]} 17. Qh5 {[%clk 0:02:12.3]} 17... Kh8 {[%clk 0:02:29.3]} 18. Ngf5
{[%clk 0:02:00.6]} 18... Nxf5 {[%clk 0:02:27.2]} 19. Nxf5 {[%clk 0:02:00.2]}
19... Re8 {[%clk 0:02:22]} 20. Nh6 {[%clk 0:01:55.4]} 20... Qe7 {[%clk 0:02:20]}
21. Nxf7+ {[%clk 0:01:47.8]} 21... Bxf7 {[%clk 0:02:20]} 22. Bxf7 {[%clk
0:01:46.3]} 22... Rf8 {[%clk 0:02:19.8]} 23. Bd5 {[%clk 0:01:46.8]} 23... a5
{[%clk 0:02:16.1]} 24. c4 {[%clk 0:01:46.3]} 24... b4 {[%clk 0:02:15.4]} 25. Re3
{[%clk 0:01:45.5]} 25... Rg8 {[%clk 0:02:15.3]} 26. Bxg8 {[%clk 0:01:45.2]}
26... Rxg8 {[%clk 0:02:15.6]} 27. Rg3 {[%clk 0:01:43.6]} 27... a4 {[%clk
0:02:10.1]} 28. Rxg8+ {[%clk 0:01:41.1]} 28... Kxg8 {[%clk 0:02:09.8]} 29. Re1
{[%clk 0:01:34.9]} 29... Bd8 {[%clk 0:02:06]} 30. Re3 {[%clk 0:01:34.5]} 30...
Kf8 {[%clk 0:02:04.4]} 31. Rg3 {[%clk 0:01:31.8]} 31... Qf7 {[%clk 0:02:02.6]}
32. Qh6+ {[%clk 0:01:29.1]} 32... Ke8 {[%clk 0:02:00.6]} 33. Rg7 {[%clk
0:01:29.4]} 33... Qf8 {[%clk 0:01:56.7]} 34. Qh5+ {[%clk 0:01:29.5]} 34... Qf7
{[%clk 0:01:55.5]} 35. Qxf7# {[%clk 0:01:30]} 1-0

[Event "*** Titled Tuesday Blitz"]
[Site "Chess.com"]
[Date "2020.05.05"]
[Round "7"]
[White "Sjakkerntobi"]
[Black "ShahMatKanal"]
[Result "1/2-1/2"]
[WhiteElo "2246"]
[BlackElo "2402"]
[TimeControl "180+1"]
[EndTime "11:15:46 PDT"]
[Termination "Game drawn by repetition"]

1. e4 {[%clk 0:03:00.9]} 1... c6 {[%clk 0:03:00]} 2. Nc3 {[%clk 0:02:58.9]} 2...
d5 {[%clk 0:03:00.4]} 3. d4 {[%clk 0:02:59.8]} 3... g6 {[%clk 0:02:59.9]} 4. Nf3
{[%clk 0:02:59.4]} 4... Bg4 {[%clk 0:03:00.2]} 5. h3 {[%clk 0:02:59.4]} 5...
Bxf3 {[%clk 0:03:00.4]} 6. Qxf3 {[%clk 0:03:00.3]} 6... dxe4 {[%clk 0:02:58.7]}
7. Nxe4 {[%clk 0:03:01.2]} 7... Bg7 {[%clk 0:02:59.2]} 8. Bc4 {[%clk 0:02:59.2]}
8... Nf6 {[%clk 0:02:59.4]} 9. Bxf7+ {[%clk 0:02:57.7]} 9... Kxf7 {[%clk
0:02:54.1]} 10. Ng5+ {[%clk 0:02:58.1]} 10... Kg8 {[%clk 0:02:31]} 11. Qb3+
{[%clk 0:02:51.2]} 11... Qd5 {[%clk 0:01:55.1]} 12. Qxb7 {[%clk 0:02:46.6]}
12... Qxg2 {[%clk 0:01:54.8]} 13. Rf1 {[%clk 0:02:35.1]} 13... Bh6 {[%clk
0:01:20.6]} 14. Qc8+ {[%clk 0:02:04.3]} 14... Kg7 {[%clk 0:01:19.9]} 15. Ne6+
{[%clk 0:02:03.8]} 15... Kf7 {[%clk 0:01:20.1]} 16. Qxh8 {[%clk 0:02:02]} 16...
Qe4+ {[%clk 0:01:07.1]} 17. Kd1 {[%clk 0:01:56.7]} 17... Qf3+ {[%clk 0:00:55.1]}
18. Ke1 {[%clk 0:01:55.9]} 18... Qe4+ {[%clk 0:00:52.7]} 19. Kd1 {[%clk
0:01:55.1]} 19... Qf3+ {[%clk 0:00:51.7]} 20. Ke1 {[%clk 0:01:53.8]} 20... Qe4+
{[%clk 0:00:51.7]} 21. Kd1 {[%clk 0:01:52.3]} 1/2-1/2

[Event "*** Titled Tuesday Blitz"]
[Site "Chess.com"]
[Date "2020.05.05"]
[Round "7"]
[White "Karina_Ivanova"]
[Black "Ladislav1969"]
[Result "0-1"]
[WhiteElo "2175"]
[BlackElo "2352"]
[TimeControl "180+1"]
[EndTime "11:15:46 PDT"]
[Termination "Ladislav1969 won by resignation"]

1. Nf3 {[%clk 0:02:59.1]} 1... c5 {[%clk 0:03:00.7]} 2. c4 {[%clk 0:02:56]} 2...
Nf6 {[%clk 0:03:00.5]} 3. d4 {[%clk 0:02:49]} 3... cxd4 {[%clk 0:02:59.7]} 4.
Nxd4 {[%clk 0:02:48.2]} 4... g6 {[%clk 0:02:59.9]} 5. g3 {[%clk 0:02:47.8]} 5...
Bg7 {[%clk 0:02:55.4]} 6. Bg2 {[%clk 0:02:47.7]} 6... Nc6 {[%clk 0:02:54.4]} 7.
O-O {[%clk 0:02:46.3]} 7... O-O {[%clk 0:02:53.1]} 8. Nc3 {[%clk 0:02:45.6]}
8... a6 {[%clk 0:02:39.3]} 9. b3 {[%clk 0:02:40.7]} 9... Nxd4 {[%clk 0:02:29.5]}
10. Qxd4 {[%clk 0:02:40]} 10... d5 {[%clk 0:02:29.3]} 11. Qd3 {[%clk 0:02:21.5]}
11... dxc4 {[%clk 0:02:24.7]} 12. Qxc4 {[%clk 0:02:20.7]} 12... Be6 {[%clk
0:02:16.1]} 13. Qh4 {[%clk 0:02:16.6]} 13... Nd5 {[%clk 0:02:02.4]} 14. Nxd5
{[%clk 0:02:00.9]} 14... Bxa1 {[%clk 0:01:42.9]} 15. Nxe7+ {[%clk 0:02:00.2]}
15... Kh8 {[%clk 0:01:42.7]} 16. Bg5 {[%clk 0:01:59.2]} 16... Qd4 {[%clk
0:01:36.4]} 17. Qxd4+ {[%clk 0:01:42.7]} 17... Bxd4 {[%clk 0:01:34.8]} 18. e3
{[%clk 0:01:42.7]} 18... Bg7 {[%clk 0:01:18.1]} 19. Bxb7 {[%clk 0:01:39.9]}
19... Ra7 {[%clk 0:01:16.9]} 20. Bd5 {[%clk 0:01:37.6]} 20... f6 {[%clk
0:01:15]} 21. Bxe6 {[%clk 0:01:36.9]} 21... Rxe7 {[%clk 0:01:14.6]} 0-1

[Event "*** Titled Tuesday Blitz"]
[Site "Chess.com"]
[Date "2020.05.05"]
[Round "7"]
[White "Baronessa08"]
[Black "Phenix2k"]
[Result "0-1"]
[WhiteElo "2459"]
[BlackElo "2318"]
[TimeControl "180+1"]
[EndTime "11:15:56 PDT"]
[Termination "Phenix2k won by resignation"]

1. c4 {[%clk 0:03:00.9]} 1... g6 {[%clk 0:02:59.3]} 2. Nc3 {[%clk 0:03:00]} 2...
Bg7 {[%clk 0:02:59.6]} 3. g3 {[%clk 0:02:59.9]} 3... Nf6 {[%clk 0:02:59.4]} 4.
Bg2 {[%clk 0:03:00.1]} 4... d6 {[%clk 0:02:59.8]} 5. e4 {[%clk 0:03:00]} 5... c5
{[%clk 0:03:00]} 6. Nge2 {[%clk 0:02:59.7]} 6... Nc6 {[%clk 0:03:00.2]} 7. O-O
{[%clk 0:03:00.1]} 7... Nd7 {[%clk 0:03:00.3]} 8. d3 {[%clk 0:02:58]} 8... Nf8
{[%clk 0:03:00.5]} 9. Be3 {[%clk 0:02:57.7]} 9... Ne6 {[%clk 0:03:00.7]} 10. Qd2
{[%clk 0:02:54.9]} 10... Ned4 {[%clk 0:02:59.6]} 11. Rad1 {[%clk 0:02:51.7]}
11... O-O {[%clk 0:02:58.8]} 12. Bh6 {[%clk 0:02:50.5]} 12... a6 {[%clk
0:02:53.6]} 13. Bxg7 {[%clk 0:02:49.9]} 13... Kxg7 {[%clk 0:02:53.8]} 14. Nxd4
{[%clk 0:02:45.9]} 14... Nxd4 {[%clk 0:02:53.4]} 15. f4 {[%clk 0:02:45.9]} 15...
e6 {[%clk 0:02:52.6]} 16. e5 {[%clk 0:02:44]} 16... dxe5 {[%clk 0:02:27.2]} 17.
fxe5 {[%clk 0:02:44.9]} 17... Rb8 {[%clk 0:02:20.7]} 18. Ne4 {[%clk 0:02:39.9]}
18... b6 {[%clk 0:02:17.7]} 19. Nf6 {[%clk 0:02:23.1]} 19... Bb7 {[%clk
0:02:08.8]} 20. Bxb7 {[%clk 0:02:12.8]} 20... Rxb7 {[%clk 0:02:07.2]} 21. Rf4
{[%clk 0:02:03.6]} 21... Rh8 {[%clk 0:01:56.3]} 22. Re1 {[%clk 0:02:00.8]} 22...
h6 {[%clk 0:01:44.7]} 23. Qf2 {[%clk 0:01:58.2]} 23... g5 {[%clk 0:01:31.4]} 24.
Rfe4 {[%clk 0:01:57.8]} 24... Nf5 {[%clk 0:01:28.2]} 25. g4 {[%clk 0:01:48.9]}
25... Nh4 {[%clk 0:01:18.9]} 26. d4 {[%clk 0:01:42.3]} 26... cxd4 {[%clk
0:01:14.3]} 27. Rxd4 {[%clk 0:01:42]} 27... Qxd4 {[%clk 0:01:12.4]} 0-1

[Event "*** Titled Tuesday Blitz"]
[Site "Chess.com"]
[Date "2020.05.05"]
[Round "7"]
[White "Reader777"]
[Black "aa175"]
[Result "1-0"]
[WhiteElo "2594"]
[BlackElo "2412"]
[TimeControl "180+1"]
[EndTime "11:15:57 PDT"]
[Termination "Reader777 won by resignation"]

1. d4 {[%clk 0:03:00.9]} 1... e5 {[%clk 0:02:59.8]} 2. dxe5 {[%clk 0:02:59.7]}
2... Nc6 {[%clk 0:03:00.1]} 3. Nf3 {[%clk 0:02:59.1]} 3... Qe7 {[%clk
0:03:00.2]} 4. Nbd2 {[%clk 0:02:49.8]} 4... Nxe5 {[%clk 0:03:00.1]} 5. Nxe5
{[%clk 0:02:49.2]} 5... Qxe5 {[%clk 0:02:59.9]} 6. Nf3 {[%clk 0:02:49.8]} 6...
Qc5 {[%clk 0:02:51]} 7. g3 {[%clk 0:02:47]} 7... Nf6 {[%clk 0:02:50.9]} 8. Bg2
{[%clk 0:02:46.4]} 8... d5 {[%clk 0:02:50.9]} 9. O-O {[%clk 0:02:45.3]} 9... Bd6
{[%clk 0:02:51.2]} 10. a3 {[%clk 0:02:39.4]} 10... O-O {[%clk 0:02:49.2]} 11. b4
{[%clk 0:02:37.4]} 11... Qc4 {[%clk 0:02:39.6]} 12. Bb2 {[%clk 0:02:33.8]} 12...
Ne4 {[%clk 0:02:20.7]} 13. Nd2 {[%clk 0:02:30.9]} 13... Nxd2 {[%clk 0:02:19.8]}
14. Qxd2 {[%clk 0:02:31.4]} 14... c6 {[%clk 0:02:07.9]} 15. e4 {[%clk
0:02:29.8]} 15... Be6 {[%clk 0:02:03.5]} 16. Rad1 {[%clk 0:02:25.1]} 16... Rfd8
{[%clk 0:01:59.1]} 17. exd5 {[%clk 0:02:20.8]} 17... cxd5 {[%clk 0:02:00]} 18.
Bxd5 {[%clk 0:02:09.3]} 18... Bxd5 {[%clk 0:02:00.9]} 19. Qxd5 {[%clk
0:02:08.4]} 19... Qxc2 {[%clk 0:01:59.2]} 20. Rd2 {[%clk 0:01:36.4]} 20... Bf8
{[%clk 0:01:35.6]} 21. Qxd8 {[%clk 0:01:33.1]} 21... Rxd8 {[%clk 0:01:35.6]} 22.
Rxc2 {[%clk 0:01:33.2]} 22... b5 {[%clk 0:01:31.7]} 23. Rfc1 {[%clk 0:01:32.4]}
1-0

[Event "*** Titled Tuesday Blitz"]
[Site "Chess.com"]
[Date "2020.05.05"]
[Round "7"]
[White "Kobalia"]
[Black "Balla_Tamas"]
[Result "1-0"]
[WhiteElo "2743"]
[BlackElo "2562"]
[TimeControl "180+1"]
[EndTime "11:16:00 PDT"]
[Termination "Kobalia won by resignation"]

1. e4 {[%clk 0:03:00.3]} 1... d5 {[%clk 0:02:58.9]} 2. exd5 {[%clk 0:02:59.9]}
2... Qxd5 {[%clk 0:02:57.7]} 3. d4 {[%clk 0:03:00.1]} 3... e5 {[%clk 0:02:54.4]}
4. Nf3 {[%clk 0:02:56.7]} 4... exd4 {[%clk 0:02:51]} 5. Qxd4 {[%clk 0:02:56]}
5... Qxd4 {[%clk 0:02:50.1]} 6. Nxd4 {[%clk 0:02:55.6]} 6... c6 {[%clk
0:02:37.6]} 7. Nc3 {[%clk 0:02:53.6]} 7... Bb4 {[%clk 0:02:36.5]} 8. Bg5 {[%clk
0:02:50.1]} 8... h6 {[%clk 0:02:30.3]} 9. Bh4 {[%clk 0:02:49.1]} 9... Ne7 {[%clk
0:02:30]} 10. O-O-O {[%clk 0:02:48.3]} 10... O-O {[%clk 0:02:27.6]} 11. a3
{[%clk 0:02:47.4]} 11... Ng6 {[%clk 0:02:19.1]} 12. axb4 {[%clk 0:02:43.1]}
12... Nxh4 {[%clk 0:02:17.6]} 13. g3 {[%clk 0:02:41.8]} 13... Nf5 {[%clk
0:02:16.2]} 14. Bc4 {[%clk 0:02:41]} 14... Nxd4 {[%clk 0:02:13.8]} 15. Rxd4
{[%clk 0:02:39.1]} 15... Nd7 {[%clk 0:02:14.4]} 16. Ne4 {[%clk 0:02:38]} 16...
Ne5 {[%clk 0:02:13.1]} 17. Bb3 {[%clk 0:02:35.5]} 17... a5 {[%clk 0:02:03.5]}
18. b5 {[%clk 0:02:20.7]} 18... cxb5 {[%clk 0:01:59.9]} 19. Rd5 {[%clk
0:02:20.7]} 19... a4 {[%clk 0:01:51.1]} 20. Ba2 {[%clk 0:02:18.4]} 20... Be6
{[%clk 0:01:36.5]} 21. Rxe5 {[%clk 0:02:17.3]} 21... Bxa2 {[%clk 0:01:36.3]} 22.
Rxb5 {[%clk 0:02:07.4]} 22... Rfe8 {[%clk 0:01:36]} 23. f3 {[%clk 0:02:04.8]}
23... Re7 {[%clk 0:01:27]} 24. Rd1 {[%clk 0:02:02.1]} 24... Be6 {[%clk
0:01:25.1]} 25. Nc5 {[%clk 0:01:52.7]} 25... Bd5 {[%clk 0:01:22.5]} 26. Rxd5
{[%clk 0:01:43.1]} 26... a3 {[%clk 0:01:18.1]} 27. bxa3 {[%clk 0:01:42.6]} 27...
Rxa3 {[%clk 0:01:17.3]} 28. Rxb7 {[%clk 0:01:38.2]} 1-0

[Event "*** Titled Tuesday Blitz"]
[Site "Chess.com"]
[Date "2020.05.05"]
[Round "7"]
[White "Shushik"]
[Black "reniite"]
[Result "1-0"]
[WhiteElo "2033"]
[BlackElo "1940"]
[TimeControl "180+1"]
[EndTime "11:16:05 PDT"]
[Termination "Shushik won by resignation"]

1. e4 {[%clk 0:02:59.4]} 1... e5 {[%clk 0:02:56.2]} 2. Nf3 {[%clk 0:02:58.9]}
2... Nf6 {[%clk 0:02:55.8]} 3. Nxe5 {[%clk 0:02:58.6]} 3... d6 {[%clk
0:02:54.8]} 4. Nf3 {[%clk 0:02:57.2]} 4... Nxe4 {[%clk 0:02:55]} 5. Bd3 {[%clk
0:02:57.3]} 5... Nc5 {[%clk 0:02:52.1]} 6. Be2 {[%clk 0:02:56.9]} 6... d5 {[%clk
0:02:51.7]} 7. d4 {[%clk 0:02:55.7]} 7... Ne4 {[%clk 0:02:51.9]} 8. O-O {[%clk
0:02:54.3]} 8... Bd6 {[%clk 0:02:52.1]} 9. Bd3 {[%clk 0:02:52.4]} 9... O-O
{[%clk 0:02:51.6]} 10. c4 {[%clk 0:02:51.4]} 10... c6 {[%clk 0:02:51.9]} 11. Qc2
{[%clk 0:02:45.6]} 11... Re8 {[%clk 0:02:44]} 12. Nc3 {[%clk 0:02:38.6]} 12...
Nxc3 {[%clk 0:02:19.9]} 13. bxc3 {[%clk 0:02:38.1]} 13... Kh8 {[%clk 0:02:20.5]}
14. Ng5 {[%clk 0:02:26.1]} 14... Qc7 {[%clk 0:02:11.6]} 15. Nxh7 {[%clk
0:02:05.5]} 15... Bxh2+ {[%clk 0:02:09.8]} 16. Kh1 {[%clk 0:02:05.2]} 16... dxc4
{[%clk 0:02:05.5]} 17. Bxc4 {[%clk 0:01:58]} 17... Bf4 {[%clk 0:01:58]} 18. Ng5
{[%clk 0:01:50.2]} 18... Bxg5 {[%clk 0:01:53]} 19. Bxg5 {[%clk 0:01:49.4]} 19...
Be6 {[%clk 0:01:43.2]} 20. Rae1 {[%clk 0:01:44.9]} 20... Qd7 {[%clk 0:01:39.3]}
21. Re4 {[%clk 0:01:20.9]} 21... Bf5 {[%clk 0:01:18.2]} 22. Rxe8+ {[%clk
0:01:19.5]} 22... Qxe8 {[%clk 0:01:15.5]} 23. Qxf5 {[%clk 0:01:19.1]} 1-0

[Event "*** Titled Tuesday Blitz"]
[Site "Chess.com"]
[Date "2020.05.05"]
[Round "7"]
[White "FedaMaster"]
[Black "SamuelGhimpu2003"]
[Result "0-1"]
[WhiteElo "2531"]
[BlackElo "2686"]
[TimeControl "180+1"]
[EndTime "11:16:08 PDT"]
[Termination "SamuelGhimpu2003 won by resignation"]

1. e4 {[%clk 0:03:00.9]} 1... e6 {[%clk 0:02:59.9]} 2. d4 {[%clk 0:03:00.6]}
2... d5 {[%clk 0:03:00.8]} 3. Bd3 {[%clk 0:02:54]} 3... dxe4 {[%clk 0:03:00.2]}
4. Bxe4 {[%clk 0:02:54.6]} 4... Nf6 {[%clk 0:02:59.8]} 5. Bf3 {[%clk 0:02:55.3]}
5... c5 {[%clk 0:02:59.6]} 6. Ne2 {[%clk 0:02:55.8]} 6... Nc6 {[%clk 0:02:58]}
7. Be3 {[%clk 0:02:55.6]} 7... Nd5 {[%clk 0:02:58.2]} 8. Bxd5 {[%clk 0:02:54.3]}
8... Qxd5 {[%clk 0:02:59.1]} 9. Nbc3 {[%clk 0:02:54.9]} 9... Qxg2 {[%clk
0:02:59.6]} 10. Rg1 {[%clk 0:02:51.9]} 10... Qxh2 {[%clk 0:02:59.6]} 11. Bf4
{[%clk 0:02:39.4]} 11... Qh5 {[%clk 0:02:59.3]} 12. Nb5 {[%clk 0:02:39.3]} 12...
f6 {[%clk 0:02:59.3]} 13. Nc7+ {[%clk 0:02:25.6]} 13... Kf7 {[%clk 0:02:59.1]}
14. Nxa8 {[%clk 0:02:25.4]} 14... cxd4 {[%clk 0:02:58.1]} 15. Nxd4 {[%clk
0:01:10.3]} 15... Qxd1+ {[%clk 0:02:57.3]} 16. Rxd1 {[%clk 0:01:10]} 16... Nxd4
{[%clk 0:02:57.8]} 17. Rxd4 {[%clk 0:01:10.9]} 17... e5 {[%clk 0:02:58.1]} 18.
Rc4 {[%clk 0:01:11.1]} 18... exf4 {[%clk 0:02:58.1]} 19. Nc7 {[%clk 0:00:31.7]}
19... Bd6 {[%clk 0:02:58.3]} 20. Nb5 {[%clk 0:00:19.2]} 20... Bb8 {[%clk
0:02:58.6]} 21. Rd4 {[%clk 0:00:12]} 21... h5 {[%clk 0:02:46.4]} 22. Nd6+ {[%clk
0:00:10.6]} 22... Bxd6 {[%clk 0:02:46.1]} 23. Rxd6 {[%clk 0:00:11.5]} 23... g5
{[%clk 0:02:45.7]} 24. f3 {[%clk 0:00:06.1]} 24... g4 {[%clk 0:02:40]} 25. Kf2
{[%clk 0:00:06.3]} 25... g3+ {[%clk 0:02:38.6]} 26. Kg2 {[%clk 0:00:04]} 26...
h4 {[%clk 0:02:38.1]} 27. Rh1 {[%clk 0:00:02]} 27... h3+ {[%clk 0:02:36.8]} 0-1

[Event "*** Titled Tuesday Blitz"]
[Site "Chess.com"]
[Date "2020.05.05"]
[Round "7"]
[White "mjray79"]
[Black "plumalka"]
[Result "0-1"]
[WhiteElo "2251"]
[BlackElo "2445"]
[TimeControl "180+1"]
[EndTime "11:16:08 PDT"]
[Termination "plumalka won by checkmate"]

1. d4 {[%clk 0:03:00.9]} 1... Nf6 {[%clk 0:02:58.8]} 2. c4 {[%clk 0:03:00.6]}
2... c5 {[%clk 0:02:59.3]} 3. d5 {[%clk 0:02:59.7]} 3... b5 {[%clk 0:02:59.6]}
4. Nf3 {[%clk 0:02:57.1]} 4... e6 {[%clk 0:02:52.8]} 5. dxe6 {[%clk 0:02:52.5]}
5... fxe6 {[%clk 0:02:51.9]} 6. cxb5 {[%clk 0:02:52.2]} 6... d5 {[%clk
0:02:52.1]} 7. Bg5 {[%clk 0:02:51.7]} 7... Bd6 {[%clk 0:02:48.1]} 8. Nc3 {[%clk
0:02:50.7]} 8... O-O {[%clk 0:02:47.4]} 9. e4 {[%clk 0:02:50.2]} 9... d4 {[%clk
0:02:42.7]} 10. Na4 {[%clk 0:02:29.8]} 10... Qa5+ {[%clk 0:02:34.2]} 11. Bd2
{[%clk 0:02:25.2]} 11... Qc7 {[%clk 0:02:33.4]} 12. Rc1 {[%clk 0:02:20.5]} 12...
Nxe4 {[%clk 0:02:28.8]} 13. Bd3 {[%clk 0:02:20.3]} 13... Nxd2 {[%clk 0:02:26.2]}
14. Qxd2 {[%clk 0:02:18]} 14... Bf4 {[%clk 0:02:23.3]} 15. Qc2 {[%clk
0:02:06.2]} 15... Bxc1 {[%clk 0:02:21.5]} 16. Qxc1 {[%clk 0:02:07.1]} 16... Qa5+
{[%clk 0:02:21]} 17. Nd2 {[%clk 0:02:02.8]} 17... Qxa4 {[%clk 0:02:17.7]} 18.
Qxc5 {[%clk 0:02:03]} 18... Bb7 {[%clk 0:01:59.2]} 19. Qh5 {[%clk 0:01:59.7]}
19... h6 {[%clk 0:01:26.5]} 20. Qg6 {[%clk 0:01:58.5]} 20... Nd7 {[%clk
0:00:59.3]} 21. Qxe6+ {[%clk 0:01:41.3]} 21... Kh8 {[%clk 0:00:53.1]} 22. Qxd7
{[%clk 0:01:39]} 22... Rae8+ {[%clk 0:00:52.2]} 23. Kf1 {[%clk 0:01:37.5]} 23...
Qd1# {[%clk 0:00:51.7]} 0-1

[Event "*** Titled Tuesday Blitz"]
[Site "Chess.com"]
[Date "2020.05.05"]
[Round "7"]
[White "Ariadna_Atreides"]
[Black "WinstonSilvakov"]
[Result "1-0"]
[WhiteElo "2002"]
[BlackElo "2168"]
[TimeControl "180+1"]
[EndTime "11:16:08 PDT"]
[Termination "Ariadna_Atreides won by resignation"]

1. d4 {[%clk 0:02:47.6]} 1... Nf6 {[%clk 0:02:58.4]} 2. Nf3 {[%clk 0:02:47.4]}
2... c5 {[%clk 0:02:57.2]} 3. e3 {[%clk 0:02:46.9]} 3... cxd4 {[%clk 0:02:58.1]}
4. exd4 {[%clk 0:02:47]} 4... g6 {[%clk 0:02:58.3]} 5. Be2 {[%clk 0:02:43.8]}
5... Bg7 {[%clk 0:02:59.2]} 6. O-O {[%clk 0:02:44.3]} 6... d6 {[%clk 0:02:58.9]}
7. c3 {[%clk 0:02:43.4]} 7... O-O {[%clk 0:02:59.8]} 8. Bf4 {[%clk 0:02:42.7]}
8... Nc6 {[%clk 0:03:00.1]} 9. h3 {[%clk 0:02:42.2]} 9... Qb6 {[%clk 0:03:00.5]}
10. Qb3 {[%clk 0:02:41]} 10... Be6 {[%clk 0:02:50.9]} 11. Qxb6 {[%clk
0:02:37.6]} 11... axb6 {[%clk 0:02:51.8]} 12. a3 {[%clk 0:02:37.9]} 12... Rfe8
{[%clk 0:02:29.4]} 13. Nbd2 {[%clk 0:02:37.5]} 13... Nd5 {[%clk 0:02:27.4]} 14.
Bh2 {[%clk 0:02:35.9]} 14... Rad8 {[%clk 0:02:13.6]} 15. c4 {[%clk 0:02:31.6]}
15... Nc7 {[%clk 0:01:58.8]} 16. d5 {[%clk 0:02:31.7]} 16... Nxd5 {[%clk
0:01:59.7]} 17. cxd5 {[%clk 0:02:32.2]} 17... Bxd5 {[%clk 0:01:58.5]} 18. Rab1
{[%clk 0:02:23]} 18... Ba2 {[%clk 0:01:56.8]} 19. Ra1 {[%clk 0:02:22.1]} 19...
Bd5 {[%clk 0:01:56.1]} 20. Bc4 {[%clk 0:02:18.7]} 20... Bxc4 {[%clk 0:01:46.9]}
21. Nxc4 {[%clk 0:02:18.8]} 21... b5 {[%clk 0:01:47.3]} 22. Ne3 {[%clk
0:02:18.5]} 22... Bxb2 {[%clk 0:01:47]} 23. Rab1 {[%clk 0:02:18.1]} 23... Bxa3
{[%clk 0:01:43.7]} 24. Rxb5 {[%clk 0:02:18]} 24... Rd7 {[%clk 0:01:42.1]} 25.
Rfb1 {[%clk 0:02:16.6]} 25... Rb8 {[%clk 0:01:38]} 26. Nc4 {[%clk 0:01:57.1]}
26... Bc5 {[%clk 0:01:26.1]} 27. Kf1 {[%clk 0:01:52.5]} 27... e5 {[%clk
0:01:07.4]} 28. Nfxe5 {[%clk 0:01:45]} 1-0